[Event "360 One Wealth GP-3 2024"]
[Site "Mumbai"]
[Date "2024.02.09"]
[Round "5.4"]
[White "Kherdekar Arnav"]
[Black "Kush Ajay Agarwal"]
[Result "1-0"]
[ECO "C63"]
[WhiteElo "1693"]
[BlackElo "1458"]
[Annotator "NA RC"]
[PlyCount "139"]
[EventDate "2024.02.04"]
[EventType "swiss"]
[EventCountry "IND"]
[SourceTitle "playchess.com"]
[Source "ChessBase"]
[SourceQuality "1"]
[TimeControl "5400+30"]

1. e4 {[%emt 0:01:29]} e5 {[%emt 0:00:13]} 2. Nf3 {[%emt 0:00:06]} Nc6 {[%emt 0:00:08]} 3. Bb5 {[%emt 0:00:09]} f5 {[%emt 0:02:49]} 4. d3 {[%emt 0:00:07]} fxe4 {[%emt 0:00:05]} 5. dxe4 {[%emt 0:00:02]} Nf6 {[%emt 0:00:09]} 6. O-O {[%emt 0:04:22]} Bc5 {[%emt 0:00:42]} 7. Bc4 {[%emt 0:04:41]} d6 {[%emt 0:02:50]} 8. Ng5 {[%emt 0:08:17]} Bg4 {[%emt 0:00:46]} 9. Qd3 {[%emt 0:01:52]} Qe7 {[%emt 0:03:54]} 10. Bf7+ {[%emt 0:01:41]} Kd7 {[%emt 0:00:07]} 11. Bc4 {[%emt 0:04:46]} h6 {[%emt 0:00:13]} 12. Nf3 {[%emt 0:01:25]} Raf8 {[%emt 0:00:49]} 13. c3 {[%emt 0:09:42]} Nh5 {[%emt 0:00:30]} 14. Ne1 {[%emt 0:00:59]} Qh4 {[%emt 0:02:46]} 15. Be3 {[%emt 0:01:25]} Nf4 {[%emt 0:01:57]} 16. Qd2 {[%emt 0:01:42]} Bb6 {[%emt 0:03:08]} 17. Bxb6 {[%emt 0:00:44]} axb6 {[%emt 0:00:02]} 18. f3 {[%emt 0:11:10]} Bh5 {[%emt 0:00:57]} 19. g3 {[%emt 0:01:40]} Nh3+ {[%emt 0:05:05]} 20. Kg2 {[%emt 0:01:08]} Bxf3+ {[%emt 0:11:01]} 21. Nxf3 {[%emt 0:00:08]} Qxe4 {[%emt 0:00:12]} 22. Qe2 {[%emt 0:10:30]} Qg4 {[%emt 0:00:45]} 23. Nxe5+ {[%emt 0:00:11]} Nxe5 {[%emt 0:00:16]} 24. Qxg4+ {[%emt 0:00:02]} Nxg4 {[%emt 0:00:14]} 25. Kxh3 {[%emt 0:00:02]} Ne3 {[%emt 0:02:03]} 26. Rxf8 {[%emt 0:10:57]} Rxf8 {[%emt 0:00:02]} 27. Nd2 {[%emt 0:00:11]} Rf2 {[%emt 0:00:22]} 28. Re1 {[%emt 0:00:32]} Rxd2 {[%emt 0:02:06]} 29. Rxe3 {[%emt 0:00:01]} Rxb2 {[%emt 0:00:03]} 30. Bb3 {[%emt 0:04:39]} b5 {[%emt 0:00:17]} 31. Rf3 {[%emt 0:00:12]} Ke8 {[%emt 0:00:53]} 32. Bd5 {[%emt 0:01:53]} b4 {[%emt 0:00:55]} 33. Bxb7 {[%emt 0:01:36]} bxc3 {[%emt 0:00:04]} 34. Bc6+ {[%emt 0:00:11]} Ke7 {[%emt 0:00:08]} 35. a4 {[%emt 0:02:19]} c2 {[%emt 0:01:34]} 36. Rc3 {[%emt 0:00:07]} Ra2 {[%emt 0:00:21]} 37. Bd5 {[%emt 0:00:07]} Rxa4 {[%emt 0:00:16]} 38. Rxc7+ {[%emt 0:00:02]} Kf6 {[%emt 0:00:30]} 39. Rxc2 {[%emt 0:00:03]} h5 {[%emt 0:01:10]} 40. Rf2+ {[%emt 0:02:24]} Kg5 {[%emt 0:00:28]} 41. Rd2 {[%emt 0:03:07]} Ra6 {[%emt 0:01:45]} 42. Bc4 {[%emt 0:00:49]} Rb6 {[%emt 0:00:11]} 43. Rd5+ {[%emt 0:00:19]} Kh6 {[%emt 0:00:16]} 44. Bb5 {[%emt 0:01:12]} g6 {[%emt 0:00:52]} 45. Kg2 {[%emt 0:01:28]} Rb8 {[%emt 0:00:16]} 46. h4 {[%emt 0:00:31]} Rd8 {[%emt 0:00:30]} 47. Bd3 {[%emt 0:00:44]} Rd7 {[%emt 0:04:37]} 48. Rg5 {[%emt 0:00:19]} Rg7 {[%emt 0:00:13]} 49. Kf3 {[%emt 0:00:09]} Rf7+ {[%emt 0:00:15]} 50. Ke3 {[%emt 0:00:02]} Rf6 {[%emt 0:00:11]} 51. Kd4 {[%emt 0:00:32]} Re6 {[%emt 0:00:46]} 52. Bb1 {[%emt 0:02:00]} Rf6 {[%emt 0:00:59]} 53. Kd5 {[%emt 0:00:30]} Kg7 {[%emt 0:00:17]} 54. Kc6 {[%emt 0:03:15]} Re6 {[%emt 0:04:29]} 55. Kd7 {[%emt 0:00:25]} Rf6 {[%emt 0:00:11]} 56. Be4 {[%emt 0:00:57]} d5 {[%emt 0:03:07]} 57. Bxd5 {[%emt 0:00:55]} Kf8 {[%emt 0:00:56]} 58. Be4 {[%emt 0:00:19]} Kf7 {[%emt 0:00:01]} 59. Bxg6+ {[%emt 0:00:39]} Kg7 {[%emt 0:00:46]} 60. Bxh5+ {[%emt 0:00:13]} Kh7 {[%emt 0:00:18]} 61. Bg6+ {[%emt 0:00:42]} Kh6 {[%emt 0:00:36]} 62. Be8 {[%emt 0:00:41]} Kh7 {[%emt 0:00:25]} 63. h5 {[%emt 0:00:15]} Ra6 {[%emt 0:00:07]} 64. Re5 {[%emt 0:00:21]} Ra7+ {[%emt 0:00:20]} 65. Ke6 {[%emt 0:00:10]} Rg7 {[%emt 0:00:12]} 66. Bg6+ {[%emt 0:00:07]} Kh6 {[%emt 0:00:38]} 67. g4 {[%emt 0:00:14]} Ra7 {[%emt 0:00:05]} 68. g5+ {[%emt 0:00:05]} Kg7 {[%emt 0:00:06]} 69. Kf5 {[%emt 0:00:06]} Ra1 {[%emt 0:00:15]} 70. h6+ {[%emt 0:00:06]} 1-0

[Event "360 One Wealth GP-3 2024"]
[Site "Mumbai"]
[Date "2024.02.09"]
[Round "5.5"]
[White "Joglekar, Abhijit"]
[Black "Soni Deepak R"]
[Result "0-1"]
[ECO "A57"]
[WhiteElo "1502"]
[BlackElo "1445"]
[Annotator "NA RC"]
[PlyCount "106"]
[EventDate "2024.02.04"]
[EventType "swiss"]
[EventCountry "IND"]
[SourceTitle "playchess.com"]
[Source "ChessBase"]
[SourceQuality "1"]
[TimeControl "5400+30"]

1. d4 {[%emt 0:16:04]} Nf6 {[%emt 0:00:31]} 2. c4 {[%emt 0:01:09]} c5 {[%emt 0:00:14]} 3. d5 {[%emt 0:00:17]} b5 {[%emt 0:00:09]} 4. cxb5 {[%emt 0:01:10]} a6 {[%emt 0:00:08]} 5. b6 {[%emt 0:00:17]} g6 {[%emt 0:00:42]} 6. Nc3 {[%emt 0:00:29]} Qxb6 {[%emt 0:00:28]} 7. g3 {[%emt 0:01:48]} Bg7 {[%emt 0:00:36]} 8. Bg2 {[%emt 0:00:14]} d6 {[%emt 0:00:15]} 9. e4 {[%emt 0:01:18]} Nbd7 {[%emt 0:01:26]} 10. Nf3 {[%emt 0:03:10]} O-O {[%emt 0:00:34]} 11. O-O {[%emt 0:00:23]} a5 {[%emt 0:01:34]} 12. Qc2 {[%emt 0:02:28]} Ba6 {[%emt 0:01:01]} 13. Re1 {[%emt 0:00:14]} Ng4 {[%emt 0:04:25]} 14. Bf1 {[%emt 0:12:32]} Nge5 {[%emt 0:04:14]} 15. Nxe5 {[%emt 0:05:25]} Nxe5 {[%emt 0:00:11]} 16. Kg2 {[%emt 0:00:33]} c4 {[%emt 0:08:48]} 17. Be3 {[%emt 0:04:29]} Qb7 {[%emt 0:02:24]} 18. Red1 {[%emt 0:03:29]} Rab8 {[%emt 0:03:48]} 19. Rab1 {[%emt 0:04:16]} Qc7 {[%emt 0:08:30]} 20. Ne2 {[%emt 0:08:37]} Rb7 {[%emt 0:05:42]} 21. Nd4 {[%emt 0:04:16]} Rc8 {[%emt 0:06:35]} 22. Be2 {[%emt 0:08:57]} Nd3 {[%emt 0:04:35]} 23. a3 {[%emt 0:08:31]} Qd7 {[%emt 0:05:13]} 24. Qd2 {[%emt 0:05:24]} Rxb2 {[%emt 0:07:09]} 25. Qxa5 {[%emt 0:03:15]} Bxd4 {[%emt 0:14:15]} 26. Bxd4 {[%emt 0:01:29]} Rxe2 {[%emt 0:00:24]} 27. Qxa6 {[%emt 0:00:00]} Qg4 {[%emt 0:00:50]} 28. Kg1 {[%emt 0:00:45]} Rc2 {[%emt 0:03:32]} 29. Rf1 {[%emt 0:01:19]} Rf8 {[%emt 0:01:50]} 30. Qa7 {[%emt 0:02:05]} Qxe4 {[%emt 0:00:44]} 31. Rb8 {[%emt 0:00:20]} Ne5 {[%emt 0:00:52]} 32. Rxf8+ {[%emt 0:00:58]} Kxf8 {[%emt 0:00:02]} 33. Qa8+ {[%emt 0:00:22]} Kg7 {[%emt 0:00:10]} 34. Bxe5+ {[%emt 0:00:36]} Qxe5 {[%emt 0:00:04]} 35. a4 {[%emt 0:00:24]} Rd2 {[%emt 0:00:38]} 36. Rc1 {[%emt 0:00:49]} Qe2 {[%emt 0:00:39]} 37. Rf1 {[%emt 0:00:32]} c3 {[%emt 0:00:25]} 38. Qc6 {[%emt 0:00:26]} Qd3 {[%emt 0:00:29]} 39. Kg2 {[%emt 0:00:38]} Qxd5+ {[%emt 0:00:51]} 40. Qxd5 {[%emt 0:00:07]} Rxd5 {[%emt 0:00:01]} 41. Rc1 {[%emt 0:00:11]} Rc5 {[%emt 0:00:15]} 42. Kf1 {[%emt 0:00:07]} d5 {[%emt 0:00:14]} 43. Ke2 {[%emt 0:00:15]} d4 {[%emt 0:00:28]} 44. Kd3 {[%emt 0:00:08]} e5 {[%emt 0:00:16]} 45. f4 {[%emt 0:00:16]} f6 {[%emt 0:00:41]} 46. Rc2 {[%emt 0:00:29]} Kf7 {[%emt 0:00:00]} 47. fxe5 {[%emt 0:01:23]} fxe5 {[%emt 0:00:00]} 48. Rc1 {[%emt 0:00:18]} Ke6 {[%emt 0:00:04]} 49. Ra1 {[%emt 0:00:13]} Kd5 {[%emt 0:00:24]} 50. a5 {[%emt 0:00:14]} e4+ {[%emt 0:00:19]} 51. Kc2 {[%emt 0:00:09]} d3+ {[%emt 0:00:08]} 52. Kd1 {[%emt 0:00:13]} e3 {[%emt 0:00:52]} 53. a6 {[%emt 0:00:12]} c2+ {[%emt 0:00:07]} 0-1

[Event "360 One Wealth GP-3 2024"]
[Site "Mumbai"]
[Date "2024.02.09"]
[Round "5.6"]
[White "Ishaan A Tendolkar"]
[Black "Arnav Ashish Thatte"]
[Result "1/2-1/2"]
[ECO "E11"]
[WhiteElo "1451"]
[BlackElo "1280"]
[Annotator "NA RC"]
[PlyCount "153"]
[EventDate "2024.02.04"]
[EventType "swiss"]
[EventCountry "IND"]
[SourceTitle "playchess.com"]
[Source "ChessBase"]
[SourceQuality "1"]
[TimeControl "5400+30"]

1. d4 {[%emt 0:02:03]} Nf6 {[%emt 0:00:27]} 2. c4 {[%emt 0:00:10]} e6 {[%emt 0:00:23]} 3. Nf3 {[%emt 0:00:10]} Bb4+ {[%emt 0:00:22]} 4. Bd2 {[%emt 0:00:11]} Qe7 {[%emt 0:00:07]} 5. g3 {[%emt 0:00:01]} Nc6 {[%emt 0:00:12]} 6. Bg2 {[%emt 0:00:00]} Bxd2+ {[%emt 0:00:17]} 7. Nbxd2 {[%emt 0:00:12]} O-O {[%emt 0:00:12]} 8. O-O {[%emt 0:00:01]} d6 {[%emt 0:00:33]} 9. e4 {[%emt 0:01:57]} e5 {[%emt 0:00:11]} 10. d5 {[%emt 0:00:01]} Nb8 {[%emt 0:00:02]} 11. Ne1 {[%emt 0:00:11]} a5 {[%emt 0:00:22]} 12. a4 {[%emt 0:00:01]} Na6 {[%emt 0:00:48]} 13. Nd3 {[%emt 0:00:02]} Bg4 {[%emt 0:02:40]} 14. Qe1 {[%emt 0:03:31]} Nd7 {[%emt 0:03:15]} 15. Nb3 {[%emt 0:01:41]} b6 {[%emt 0:01:32]} 16. f3 {[%emt 0:02:37]} Bh5 {[%emt 0:00:26]} 17. Bh3 {[%emt 0:00:42]} Bg6 {[%emt 0:06:02]} 18. Bxd7 {[%emt 0:00:29]} Qxd7 {[%emt 0:00:11]} 19. Nd2 {[%emt 0:01:29]} f5 {[%emt 0:05:46]} 20. Qe2 {[%emt 0:09:55]} Rae8 {[%emt 0:07:06]} 21. Rfb1 {[%emt 0:01:01]} Rf6 {[%emt 0:11:22]} 22. b4 {[%emt 0:00:11]} axb4 {[%emt 0:00:12]} 23. a5 {[%emt 0:00:43]} bxa5 {[%emt 0:07:14]} 24. Rxa5 {[%emt 0:00:08]} Nb8 {[%emt 0:01:47]} 25. Rxb4 {[%emt 0:02:31]} fxe4 {[%emt 0:02:44]} 26. Nxe4 {[%emt 0:00:40]} Bxe4 {[%emt 0:00:40]} 27. fxe4 {[%emt 0:01:02]} Ref8 {[%emt 0:03:53]} 28. Rb1 {[%emt 0:07:18]} c6 {[%emt 0:10:44]} 29. Kg2 {[%emt 0:00:52]} cxd5 {[%emt 0:00:22]} 30. cxd5 {[%emt 0:00:12]} Qc7 {[%emt 0:00:42]} 31. Ra2 {[%emt 0:03:16]} Qc4 {[%emt 0:09:13]} 32. Rc2 {[%emt 0:04:05]} Qd4 {[%emt 0:00:51]} 33. Rb4 {[%emt 0:08:56]} Qa7 {[%emt 0:02:03]} 34. Ra2 {[%emt 0:00:51]} Qf7 {[%emt 0:00:51]} 35. Ra8 {[%emt 0:01:33]} Qc7 {[%emt 0:01:32]} 36. Qb2 {[%emt 0:01:05]} Nd7 {[%emt 0:00:59]} 37. Rxf8+ {[%emt 0:01:52]} Nxf8 {[%emt 0:01:25]} 38. Qe2 {[%emt 0:02:52]} Nd7 {[%emt 0:00:54]} 39. Rb2 {[%emt 0:00:19]} h6 {[%emt 0:03:43]} 40. Qc2 {[%emt 0:00:22]} Qxc2+ {[%emt 0:01:58]} 41. Rxc2 {[%emt 0:00:07]} Kf7 {[%emt 0:00:38]} 42. Rc7 {[%emt 0:00:10]} Ke8 {[%emt 0:03:08]} 43. Nf2 {[%emt 0:01:07]} Rf7 {[%emt 0:01:10]} 44. Rc8+ {[%emt 0:00:56]} Ke7 {[%emt 0:00:09]} 45. Ng4 {[%emt 0:00:49]} Nf6 {[%emt 0:01:00]} 46. Rc7+ {[%emt 0:01:40]} Ke8 {[%emt 0:00:19]} 47. Nxf6+ {[%emt 0:00:07]} gxf6 {[%emt 0:00:33]} 48. Rc8+ {[%emt 0:00:01]} Kd7 {[%emt 0:01:43]} 49. Ra8 {[%emt 0:00:14]} Ke7 {[%emt 0:01:33]} 50. Rh8 {[%emt 0:00:26]} f5 {[%emt 0:00:12]} 51. exf5 {[%emt 0:00:04]} Rxf5 {[%emt 0:01:38]} 52. Rh7+ {[%emt 0:00:44]} Rf7 {[%emt 0:00:41]} 53. Rxh6 {[%emt 0:00:07]} Rf8 {[%emt 0:02:44]} 54. Re6+ {[%emt 0:00:07]} Kd7 {[%emt 0:00:05]} 55. Rh6 {[%emt 0:00:12]} Ke7 {[%emt 0:00:06]} 56. Rh7+ {[%emt 0:00:08]} Ke8 {[%emt 0:00:18]} 57. h4 {[%emt 0:00:16]} Rf6 {[%emt 0:00:14]} 58. h5 {[%emt 0:00:27]} e4 {[%emt 0:00:48]} 59. Ra7 {[%emt 0:00:08]} Kf8 {[%emt 0:01:15]} 60. Ra4 {[%emt 0:00:26]} Rf5 {[%emt 0:00:53]} 61. Rxe4 {[%emt 0:00:12]} Rxh5 {[%emt 0:00:06]} 62. Rd4 {[%emt 0:00:09]} Kg7 {[%emt 0:00:33]} 63. Kf3 {[%emt 0:01:11]} Kf6 {[%emt 0:00:28]} 64. Ke4 {[%emt 0:00:09]} Re5+ {[%emt 0:00:08]} 65. Kd3 {[%emt 0:00:06]} Rg5 {[%emt 0:00:32]} 66. Kc4 {[%emt 0:01:37]} Rxg3 {[%emt 0:00:17]} 67. Re4 {[%emt 0:00:07]} Kf5 {[%emt 0:01:38]} 68. Re1 {[%emt 0:01:14]} Rg8 {[%emt 0:02:35]} 69. Kb5 {[%emt 0:00:08]} Rc8 {[%emt 0:00:14]} 70. Kb6 {[%emt 0:00:04]} Rc5 {[%emt 0:00:19]} 71. Re8 {[%emt 0:01:16]} Rxd5 {[%emt 0:00:18]} 72. Kc6 {[%emt 0:00:01]} Rd1 {[%emt 0:00:13]} 73. Rd8 {[%emt 0:00:03]} Ke5 {[%emt 0:00:14]} 74. Re8+ {[%emt 0:00:02]} Kf5 {[%emt 0:00:20]} 75. Rd8 {[%emt 0:00:09]} d5 {[%emt 0:00:14]} 76. Rxd5+ {[%emt 0:00:22]} Rxd5 {[%emt 0:00:07]} 77. Kxd5 {[%emt 0:00:04]} 1/2-1/2

[Event "360 One Wealth GP-3 2024"]
[Site "Mumbai"]
[Date "2024.02.09"]
[Round "5.7"]
[White "Pawar Sohum"]
[Black "Palaash Suyog Mapara"]
[Result "1-0"]
[ECO "B11"]
[WhiteElo "1442"]
[BlackElo "1165"]
[Annotator "NA RC"]
[PlyCount "97"]
[EventDate "2024.02.04"]
[EventType "swiss"]
[EventCountry "IND"]
[SourceTitle "playchess.com"]
[Source "ChessBase"]
[SourceQuality "1"]
[TimeControl "5400+30"]

1. e4 {[%emt 0:04:13]} c6 {[%emt 0:00:00]} 2. Nf3 {[%emt 0:00:16]} d5 {[%emt 0:00:05]} 3. Nc3 {[%emt 0:00:12]} dxe4 {[%emt 0:00:05]} 4. Nxe4 {[%emt 0:00:07]} Nf6 {[%emt 0:00:05]} 5. Qe2 {[%emt 0:00:25]} Nxe4 {[%emt 0:00:12]} 6. Qxe4 {[%emt 0:00:04]} Nd7 {[%emt 0:00:09]} 7. Bc4 {[%emt 0:02:23]} Nf6 {[%emt 0:00:17]} 8. Ne5 {[%emt 0:00:24]} e6 {[%emt 0:00:11]} 9. Qe2 {[%emt 0:00:33]} Bd6 {[%emt 0:00:37]} 10. d4 {[%emt 0:00:05]} Qc7 {[%emt 0:00:50]} 11. O-O {[%emt 0:04:26]} a6 {[%emt 0:02:10]} 12. Bf4 {[%emt 0:04:55]} b5 {[%emt 0:07:23]} 13. Bd3 {[%emt 0:01:03]} h6 {[%emt 0:08:16]} 14. Rfe1 {[%emt 0:02:00]} Nd5 {[%emt 0:06:46]} 15. Bd2 {[%emt 0:05:54]} Nf6 {[%emt 0:05:32]} 16. a4 {[%emt 0:03:23]} b4 {[%emt 0:07:53]} 17. c4 {[%emt 0:05:03]} a5 {[%emt 0:02:27]} 18. f4 {[%emt 0:03:19]} Bb7 {[%emt 0:06:28]} 19. f5 {[%emt 0:03:49]} O-O-O {[%emt 0:03:11]} 20. fxe6 {[%emt 0:02:55]} fxe6 {[%emt 0:01:51]} 21. Nf3 {[%emt 0:06:17]} Rhe8 {[%emt 0:04:46]} 22. Bg6 {[%emt 0:05:17]} Re7 {[%emt 0:00:19]} 23. g3 {[%emt 0:00:13]} c5 {[%emt 0:02:10]} 24. dxc5 {[%emt 0:01:07]} Bxg3 {[%emt 0:06:14]} 25. Red1 {[%emt 0:03:34]} Ng4 {[%emt 0:09:44]} 26. Be4 {[%emt 0:03:46]} Qxc5+ {[%emt 0:14:05]} 27. Kg2 {[%emt 0:01:40]} Qf2+ {[%emt 0:01:26]} 28. Qxf2 {[%emt 0:00:11]} Bxf2 {[%emt 0:00:14]} 29. Bxb7+ {[%emt 0:00:12]} Kxb7 {[%emt 0:00:59]} 30. h3 {[%emt 0:01:52]} Ne3+ {[%emt 0:01:11]} 31. Kxf2 {[%emt 0:00:40]} Nxd1+ {[%emt 0:00:16]} 32. Rxd1 {[%emt 0:00:02]} Rc7 {[%emt 0:01:08]} 33. b3 {[%emt 0:01:17]} Rd3 {[%emt 0:00:14]} 34. Ne5 {[%emt 0:02:50]} Rxb3 {[%emt 0:03:52]} 35. Be3 {[%emt 0:00:09]} Rb2+ {[%emt 0:04:47]} 36. Kf3 {[%emt 0:00:39]} Rb3 {[%emt 0:01:01]} 37. Ke4 {[%emt 0:00:55]} Ra3 {[%emt 0:01:28]} 38. Rd6 {[%emt 0:01:13]} Rxa4 {[%emt 0:00:32]} 39. Rxe6 {[%emt 0:00:59]} b3 {[%emt 0:00:17]} 40. Rb6+ {[%emt 0:00:10]} Kc8 {[%emt 0:00:28]} 41. Rxb3 {[%emt 0:00:07]} Rcxc4+ {[%emt 0:00:20]} 42. Nxc4 {[%emt 0:00:14]} Rxc4+ {[%emt 0:00:04]} 43. Bd4 {[%emt 0:01:40]} Rc7 {[%emt 0:00:53]} 44. Rc3 {[%emt 0:00:08]} Rxc3 {[%emt 0:00:34]} 45. Bxc3 {[%emt 0:00:02]} g5 {[%emt 0:00:36]} 46. Kf5 {[%emt 0:02:26]} Kd7 {[%emt 0:00:08]} 47. Bxa5 {[%emt 0:01:25]} Ke7 {[%emt 0:00:11]} 48. Kg6 {[%emt 0:00:09]} Ke6 {[%emt 0:00:16]} 49. Bc3 {[%emt 0:00:39]} 1-0

[Event "360 One Wealth GP-3 2024"]
[Site "Mumbai"]
[Date "2024.02.09"]
[Round "5.8"]
[White "Shreyas G Kaushik"]
[Black "Muthe Dhruv"]
[Result "0-1"]
[ECO "B90"]
[WhiteElo "1416"]
[BlackElo "1169"]
[Annotator "NA RC"]
[PlyCount "84"]
[EventDate "2024.02.04"]
[EventType "swiss"]
[EventCountry "IND"]
[SourceTitle "playchess.com"]
[Source "ChessBase"]
[SourceQuality "1"]
[TimeControl "5400+30"]

1. e4 {[%emt 0:00:03]} c5 {[%emt 0:00:06]} 2. Nf3 {[%emt 0:00:08]} d6 {[%emt 0:00:09]} 3. d4 {[%emt 0:00:05]} cxd4 {[%emt 0:00:06]} 4. Nxd4 {[%emt 0:00:06]} Nf6 {[%emt 0:00:21]} 5. Nc3 {[%emt 0:00:06]} a6 {[%emt 0:00:08]} 6. f3 {[%emt 0:00:14]} e5 {[%emt 0:00:38]} 7. Nb3 {[%emt 0:00:00]} Be6 {[%emt 0:00:18]} 8. Be3 {[%emt 0:00:08]} h5 {[%emt 0:02:07]} 9. Qd2 {[%emt 0:03:39]} Be7 {[%emt 0:00:54]} 10. Nd5 {[%emt 0:03:35]} Nxd5 {[%emt 0:03:34]} 11. exd5 {[%emt 0:00:00]} Bf5 {[%emt 0:00:11]} 12. c4 {[%emt 0:01:34]} b6 {[%emt 0:01:49]} 13. a4 {[%emt 0:06:25]} a5 {[%emt 0:00:59]} 14. Nc1 {[%emt 0:06:49]} Na6 15. Na2 {[%emt 0:01:56]} Nc5 {[%emt 0:03:26]} 16. Bxc5 {[%emt 0:00:30]} bxc5 {[%emt 0:00:30]} 17. Bd3 {[%emt 0:00:47]} Bg5 18. Qc2 {[%emt 0:03:20]} Bxd3 {[%emt 0:05:40]} 19. Qxd3 {[%emt 0:00:19]} Rb8 {[%emt 0:00:42]} 20. b3 {[%emt 0:06:41]} O-O {[%emt 0:06:05]} 21. Rb1 {[%emt 0:00:00]} Qe7 {[%emt 0:05:00]} 22. O-O {[%emt 0:00:00]} f5 23. Nc3 {[%emt 0:04:09]} Rf6 {[%emt 0:10:02]} 24. Nb5 {[%emt 0:00:45]} e4 25. Qe2 {[%emt 0:07:24]} Rh6 {[%emt 0:21:44]} 26. Rbe1 {[%emt 0:11:01]} Re8 27. Qc2 {[%emt 0:00:00]} Bf6 {[%emt 0:05:27]} 28. Qd2 {[%emt 0:00:00]} e3 {[%emt 0:06:19]} 29. Qxa5 {[%emt 0:00:00]} Bd4 {[%emt 0:00:23]} 30. Re2 {[%emt 0:00:00]} f4 {[%emt 0:03:59]} 31. Qb6 {[%emt 0:00:00]} Qe5 {[%emt 0:09:52]} 32. a5 {[%emt 0:00:00]} Rg6 {[%emt 0:00:34]} 33. a6 {[%emt 0:00:48]} h4 {[%emt 0:00:30]} 34. a7 {[%emt 0:07:04]} h3 {[%emt 0:01:49]} 35. Qc6 {[%emt 0:00:15]} Rxg2+ {[%emt 0:00:34]} 36. Kh1 {[%emt 0:00:44]} Rxe2 {[%emt 0:05:34]} 37. a8=Q {[%emt 0:01:26]} Rxa8 {[%emt 0:00:18]} 38. Qxa8+ {[%emt 0:00:39]} Kh7 39. Qd8 {[%emt 0:00:36]} Qh5 {[%emt 0:01:17]} 40. Qa5 {[%emt 0:01:03]} Qg5 {[%emt 0:01:00]} 41. Rg1 {[%emt 0:00:17]} Rg2 {[%emt 0:00:27]} 42. Qe1 {[%emt 0:00:27]} Rxg1+ {[%emt 0:00:28]} 0-1

[Event "360 One Wealth GP-3 2024"]
[Site "Mumbai"]
[Date "2024.02.09"]
[Round "5.9"]
[White "Gogri Vedaant"]
[Black "Sunil, Vaidya"]
[Result "0-1"]
[ECO "A15"]
[WhiteElo "1229"]
[BlackElo "1402"]
[Annotator "NA RC"]
[PlyCount "84"]
[EventDate "2024.02.04"]
[EventType "swiss"]
[EventCountry "IND"]
[SourceTitle "playchess.com"]
[Source "ChessBase"]
[SourceQuality "1"]
[TimeControl "5400+30"]

1. c4 {[%emt 0:01:38]} c6 {[%emt 0:00:28]} 2. g3 {[%emt 0:01:04]} Nf6 {[%emt 0:00:33]} 3. Bg2 {[%emt 0:01:27]} g6 {[%emt 0:00:28]} 4. b3 {[%emt 0:00:58]} Bg7 {[%emt 0:00:34]} 5. Bb2 {[%emt 0:01:22]} O-O {[%emt 0:00:13]} 6. Nf3 {[%emt 0:02:03]} d6 {[%emt 0:01:44]} 7. O-O {[%emt 0:01:44]} e5 {[%emt 0:00:57]} 8. d4 {[%emt 0:01:39]} e4 {[%emt 0:00:14]} 9. Nfd2 {[%emt 0:02:15]} e3 {[%emt 0:04:13]} 10. Ne4 {[%emt 0:05:07]} exf2+ {[%emt 0:03:40]} 11. Nxf2 {[%emt 0:02:27]} h5 {[%emt 0:01:24]} 12. e4 {[%emt 0:01:52]} Ng4 {[%emt 0:01:36]} 13. Nxg4 {[%emt 0:02:45]} Bxg4 {[%emt 0:00:08]} 14. Bf3 {[%emt 0:00:43]} Bh3 {[%emt 0:05:29]} 15. Bg2 {[%emt 0:02:28]} Bg4 {[%emt 0:02:28]} 16. Bf3 {[%emt 0:00:22]} Be6 {[%emt 0:01:32]} 17. Nc3 {[%emt 0:02:27]} Nd7 {[%emt 0:03:14]} 18. d5 {[%emt 0:01:02]} Bh3 {[%emt 0:02:06]} 19. Bg2 {[%emt 0:01:26]} Qb6+ {[%emt 0:00:32]} 20. Kh1 {[%emt 0:01:08]} Bxg2+ {[%emt 0:00:20]} 21. Kxg2 {[%emt 0:00:52]} Rae8 {[%emt 0:01:58]} 22. Qd2 {[%emt 0:03:00]} Qd4 {[%emt 0:03:18]} 23. Qxd4 {[%emt 0:02:01]} Bxd4 {[%emt 0:00:36]} 24. Rae1 {[%emt 0:02:23]} c5 {[%emt 0:06:28]} 25. Re2 {[%emt 0:05:31]} a6 {[%emt 0:03:28]} 26. Ba1 {[%emt 0:01:08]} Re7 {[%emt 0:01:38]} 27. Bb2 {[%emt 0:03:23]} Rfe8 {[%emt 0:01:22]} 28. Kf3 {[%emt 0:01:09]} Ne5+ {[%emt 0:00:46]} 29. Kg2 {[%emt 0:00:49]} Nd3 {[%emt 0:00:46]} 30. Ba1 {[%emt 0:01:18]} Kg7 {[%emt 0:04:20]} 31. Kf3 {[%emt 0:01:14]} Ne5+ {[%emt 0:00:35]} 32. Kg2 {[%emt 0:02:39]} Nd7 {[%emt 0:02:23]} 33. Kf3 {[%emt 0:00:09]} g5 {[%emt 0:01:05]} 34. h3 {[%emt 0:00:43]} Kg6 {[%emt 0:01:48]} 35. Rfe1 {[%emt 0:01:19]} Ne5+ {[%emt 0:00:37]} 36. Kg2 {[%emt 0:00:14]} g4 {[%emt 0:01:08]} 37. Rf1 {[%emt 0:02:12]} Nf3 {[%emt 0:03:53]} 38. e5 {[%emt 0:03:12]} Rxe5 {[%emt 0:02:23]} 39. Rxe5 {[%emt 0:00:31]} Rxe5 {[%emt 0:00:11]} 40. h4 {[%emt 0:00:55]} Re3 {[%emt 0:00:42]} 41. Na4 {[%emt 0:00:55]} Re2+ {[%emt 0:00:23]} 42. Kh1 {[%emt 0:00:15]} Rh2# {[%emt 0:00:09]} 0-1

[Event "360 One Wealth GP-3 2024"]
[Site "Mumbai"]
[Date "2024.02.09"]
[Round "5.11"]
[White "Iyer Vivek"]
[Black "Patel Shubh"]
[Result "1-0"]
[ECO "E00"]
[WhiteElo "1359"]
[BlackElo "1083"]
[Annotator "NA RC"]
[PlyCount "49"]
[EventDate "2024.02.04"]
[EventType "swiss"]
[EventCountry "IND"]
[SourceTitle "playchess.com"]
[Source "ChessBase"]
[SourceQuality "1"]
[TimeControl "5400+30"]

1. c4 {[%emt 0:00:03]} e6 {[%emt 0:01:38]} 2. Nc3 {[%emt 0:00:12]} Nf6 {[%emt 0:01:16]} 3. a3 {[%emt 0:00:33]} d5 {[%emt 0:01:31]} 4. d4 {[%emt 0:00:29]} Be7 {[%emt 0:01:43]} 5. g3 {[%emt 0:00:12]} b6 {[%emt 0:01:33]} 6. Bg2 {[%emt 0:00:32]} Bb7 {[%emt 0:02:27]} 7. e3 {[%emt 0:00:32]} Nbd7 {[%emt 0:02:39]} 8. Nge2 {[%emt 0:00:09]} O-O {[%emt 0:02:44]} 9. O-O {[%emt 0:00:07]} c6 {[%emt 0:03:06]} 10. cxd5 {[%emt 0:00:19]} cxd5 {[%emt 0:01:35]} 11. Nf4 {[%emt 0:02:11]} Ne4 {[%emt 0:03:46]} 12. Nxe4 {[%emt 0:01:12]} dxe4 {[%emt 0:01:06]} 13. d5 {[%emt 0:05:49]} e5 {[%emt 0:06:25]} 14. Ne2 {[%emt 0:01:00]} Nc5 {[%emt 0:03:03]} 15. b4 {[%emt 0:01:38]} Na6 {[%emt 0:02:25]} 16. Bxe4 {[%emt 0:02:35]} f5 {[%emt 0:00:20]} 17. Bg2 {[%emt 0:00:11]} e4 {[%emt 0:02:43]} 18. Nf4 {[%emt 0:00:50]} Qd6 {[%emt 0:00:14]} 19. Bb2 {[%emt 0:01:05]} Nc7 {[%emt 0:00:55]} 20. Nh5 {[%emt 0:01:58]} g6 {[%emt 0:01:27]} 21. Qd4 {[%emt 0:00:30]} Bf6 {[%emt 0:01:55]} 22. Nxf6+ {[%emt 0:00:10]} Rxf6 {[%emt 0:00:23]} 23. Qxf6 {[%emt 0:00:03]} Qxf6 {[%emt 0:00:09]} 24. Bxf6 {[%emt 0:00:04]} Nxd5 {[%emt 0:00:07]} 25. Bd4 {[%emt 0:00:19]} 1-0